bitfinex/quotes_BTCUSD_20240721
["timestamp","ask_amount","ask_price","bid_price","bid_amount"]
[1721551189712,0.28737149,66891.0,66890.0,0.051]
[1721551189900,0.28737149,66891.0,66890.0,0.1325505]
[1721551189901,0.16777449,66891.0,66890.0,0.1325505]
[1721551190100,0.16777449,66891.0,66890.0,0.001]
[1721551192972,0.16777534,66891.0,66890.0,0.001]
[1721551193376,0.16777534,66891.0,66890.0,0.051]
[1721551194023,0.16777534,66891.0,66890.0,0.001]
[1721551195973,0.16777534,66891.0,66890.0,0.170599]
[1721551196175,0.16777534,66891.0,66890.0,0.313399]
[1721551196176,0.07807606,66891.0,66890.0,0.313399]
[1721551197606,0.07807606,66891.0,66890.0,0.3736603]
[1721551198815,0.07807606,66891.0,66890.0,0.313399]
[1721551202396,0.16778146,66891.0,66890.0,0.313399]
[1721551204934,0.16778465,66891.0,66890.0,0.313399]
[1721551206474,0.16778465,66891.0,66890.0,0.1938]
[1721551207688,0.02884,66891.0,66890.0,1.12030856]
[1721551208034,0.02884,66891.0,66890.0,1.35949102]
[1721551208649,0.01484,66891.0,66890.0,1.35949102]
[1721551209279,0.01484,66891.0,66890.0,1.35849102]
[1721551209280,0.00084,66891.0,66890.0,1.35849102]
[1721551209684,0.00384,66891.0,66890.0,1.35849102]
[1721551210115,0.00684,66891.0,66890.0,1.35849102]
[1721551210315,0.00084,66891.0,66890.0,1.35849102]
[1721551210701,0.00484,66891.0,66890.0,1.35849102]
[1721551211104,0.00484,66891.0,66890.0,1.23437474]
[1721551211305,0.00484,66891.0,66890.0,1.35848859]
[1721551214430,0.00484,66891.0,66890.0,1.35848557]
[1721551216498,0.00484,66891.0,66890.0,1.11928757]
[1721551216972,0.00484,66891.0,66890.0,1.06928757]
[1721551217178,0.00484,66891.0,66890.0,1.11928757]
[1721551217589,0.00484,66891.0,66890.0,1.11929272]
[1721551217792,0.00484,66891.0,66890.0,1.11929269]
[1721551219267,0.00484,66891.0,66890.0,0.96491095]
[1721551220817,0.00484,66891.0,66890.0,0.96491783]
[1721551223804,0.00484,66891.0,66890.0,0.840795]
[1721551223998,0.00484,66891.0,66890.0,0.96491799]
[1721551224202,0.00484,66891.0,66890.0,0.840795]
[1721551224381,0.00484,66891.0,66890.0,0.96491461]
[1721551225200,0.00484,66891.0,66890.0,1.11929635]
[1721551225650,0.00484,66891.0,66890.0,1.35849435]
[1721551225873,0.00484,66891.0,66890.0,1.11929635]
[1721551226625,0.00484,66891.0,66890.0,1.35849435]
[1721551227029,0.00484,66891.0,66890.0,1.35849026]
[1721551228327,0.00484,66891.0,66890.0,1.11929226]
[1721551229001,0.00484,66891.0,66890.0,1.35849026]
[1721551230153,0.00484,66891.0,66890.0,1.11929226]
[1721551230335,0.00484,66891.0,66890.0,0.66091252]
[1721551230545,0.00484,66891.0,66890.0,0.58291252]
[1721551231465,0.00484,66891.0,66890.0,0.24371452]
[1721551231617,0.06774,66891.0,66890.0,0.12411552]
[1721551231820,0.06774,66891.0,66885.0,0.05]
[1721551231821,0.306935,66891.0,66885.0,0.05]
[1721551232024,0.239199,66890.0,66886.0,0.12413148]
[1721551232228,0.239199,66890.0,66885.0,0.05]
[1721551232492,0.239199,66890.0,66886.0,0.1241348]
[1721551232693,0.119603,66888.0,66885.0,0.05]
[1721551232993,0.358799,66890.0,66886.0,0.12413484]
[1721551233147,0.358799,66890.0,66885.0,0.1]
[1721551233341,0.359799,66890.0,66886.0,0.12413482]
[1721551233573,0.119601,66889.0,66884.0,0.119609]
[1721551233728,0.119601,66889.0,66885.0,0.12413483]
[1721551233929,0.119601,66889.0,66884.0,0.119609]
[1721551234134,0.119601,66889.0,66885.0,0.12413504]
[1721551234341,0.119601,66889.0,66886.0,0.12413504]
[1721551234541,0.119601,66889.0,66884.0,0.119609]
[1721551234875,0.119601,66889.0,66882.0,0.05]
[1721551234876,0.119607,66886.0,66885.0,0.001]
[1721551235294,0.182507,66886.0,66885.0,0.001]
[1721551235532,0.182507,66886.0,66882.0,0.05]
[1721551235785,0.182407,66886.0,66882.0,0.05]
[1721551235956,0.22720396,66886.0,66885.0,0.002]
[1721551236184,0.182407,66886.0,66885.0,0.002]
[1721551236596,0.183407,66886.0,66885.0,0.002]
[1721551236803,0.183407,66886.0,66882.0,0.05]
[1721551236976,0.184407,66886.0,66882.0,0.05]
[1721551237136,0.184407,66886.0,66881.0,0.169614]
[1721551237337,0.182407,66886.0,66881.0,0.169614]
[1721551237589,0.182407,66886.0,66882.0,0.05]
[1721551237782,0.182407,66886.0,66881.0,0.169614]
[1721551237783,0.183407,66886.0,66881.0,0.169614]
[1721551237981,0.119608,66885.0,66881.0,0.169614]
[1721551238182,0.119608,66885.0,66882.0,0.0459776]
[1721551238382,0.119608,66885.0,66882.0,0.0959776]
[1721551238593,0.119608,66885.0,66883.0,0.05]
[1721551238793,0.119608,66885.0,66882.0,0.05]
[1721551238993,0.119608,66885.0,66883.0,0.05]
[1721551239634,0.119608,66885.0,66883.0,0.1]
[1721551240260,0.119608,66885.0,66883.0,0.05]
[1721551240458,0.10768525,66886.0,66880.0,0.1]
[1721551240664,0.119614,66882.0,66880.0,0.05]
[1721551242108,0.119614,66882.0,66878.0,0.05]
[1721551242316,0.0629,66879.0,66877.0,0.000924]
[1721551242518,0.358861,66878.0,66877.0,0.000924]
[1721551244084,0.360861,66878.0,66877.0,0.000924]
[1721551244494,0.362861,66878.0,66877.0,0.000924]
[1721551245078,0.12362,66878.0,66877.0,0.0229795]
[1721551245326,0.12362,66878.0,66877.0,0.0729795]
[1721551245523,0.004,66878.0,66877.0,0.050924]
[1721551245746,0.004,66878.0,66877.0,0.281046]
[1721551245747,0.002,66878.0,66877.0,0.281046]
[1721551245977,0.004,66878.0,66877.0,0.580381]
[1721551246578,0.002,66878.0,66877.0,0.580381]
[1721551246773,0.004,66878.0,66877.0,0.580381]
[1721551247384,0.002,66878.0,66877.0,0.580381]
[1721551247585,0.119608,66885.0,66884.0,0.05]
[1721551247803,0.119608,66885.0,66882.0,0.05]
[1721551248312,0.119606,66887.0,66885.0,0.05]
[1721551248448,0.119606,66887.0,66884.0,0.05]
[1721551248637,0.119607,66886.0,66885.0,0.05]
[1721551249102,0.119607,66886.0,66884.0,0.05]
[1721551249291,0.119607,66886.0,66885.0,0.05]
[1721551249462,0.119607,66886.0,66885.0,0.02796009]
[1721551250271,0.127607,66886.0,66885.0,0.02896009]
[1721551250505,0.135607,66886.0,66885.0,0.02896009]
[1721551250707,0.135607,66886.0,66882.0,0.05]
[1721551250708,0.127607,66886.0,66882.0,0.05]
[1721551250906,0.135607,66886.0,66885.0,0.001]
[1721551251106,0.143607,66886.0,66885.0,0.001]
[1721551252331,0.135607,66886.0,66882.0,0.05]
[1721551252531,0.135607,66886.0,66883.0,0.02795989]
[1721551252705,0.143607,66886.0,66885.0,0.001]
[1721551253143,0.135607,66886.0,66883.0,0.02795989]
[1721551253321,0.135607,66886.0,66882.0,0.05]
[1721551253531,0.127607,66886.0,66885.0,0.05]
[1721551253736,0.135607,66886.0,66884.0,0.05]
[1721551253982,0.127607,66886.0,66884.0,0.05]
[1721551254191,0.119607,66886.0,66884.0,0.05]
[1721551254386,0.127607,66886.0,66884.0,0.05]
[1721551254604,0.135607,66886.0,66883.0,0.001]
[1721551254795,0.127607,66886.0,66883.0,0.001]
[1721551255843,0.119607,66886.0,66883.0,0.02696742]
[1721551256194,0.135607,66886.0,66884.0,0.001]
[1721551256407,0.016,66886.0,66885.0,0.05]
[1721551256581,0.016,66886.0,66885.0,0.31452449]
[1721551256997,0.024,66886.0,66885.0,0.31452449]
[1721551257323,0.024,66886.0,66885.0,0.55374049]
[1721551257324,0.008,66886.0,66885.0,0.55374049]
[1721551258256,0.012,66886.0,66885.0,0.55374049]
[1721551259245,0.016,66886.0,66885.0,0.55374049]
[1721551259920,0.004,66886.0,66885.0,1.38739007]
[1721551260050,0.00084,66891.0,66890.0,0.408797]
[1721551260229,0.00084,66891.0,66890.0,0.458797]
[1721551260920,0.00084,66891.0,66890.0,0.169599]
[1721551261129,0.00084,66891.0,66890.0,0.119599]
[1721551261334,0.00084,66891.0,66890.0,0.169599]
[1721551261538,0.00784,66891.0,66890.0,0.24656642]
[1721551262940,0.00784,66891.0,66890.0,0.24756642]
[1721551263412,0.01084,66891.0,66890.0,0.24756642]
[1721551263616,0.00084,66891.0,66890.0,0.24656642]
[1721551263791,0.00084,66891.0,66890.0,0.14656642]
[1721551263998,0.00484,66891.0,66890.0,0.14656642]
[1721551264493,0.00484,66891.0,66888.0,0.169601]
[1721551264702,0.00484,66891.0,66888.0,0.05]
[1721551264912,0.00484,66891.0,66886.0,0.1254]
[1721551264913,0.124438,66891.0,66886.0,0.1254]
[1721551265123,0.124438,66891.0,66888.0,0.05]
[1721551266200,0.120438,66891.0,66888.0,0.05]
[1721551266605,0.124438,66891.0,66888.0,0.05]
[1721551266814,0.122438,66891.0,66888.0,0.05]
[1721551267130,0.124438,66891.0,66888.0,0.05]
[1721551268974,0.124438,66891.0,66888.0,0.1095224]
[1721551269795,0.124438,66891.0,66888.0,0.05]
[1721551270386,0.00484,66891.0,66888.0,0.05]
[1721551271034,0.1421,66890.0,66887.0,0.119604]
[1721551271615,0.1421,66890.0,66885.0,0.219606]
[1721551271616,0.261699,66890.0,66885.0,0.219606]
[1721551272193,0.261699,66890.0,66886.0,0.119606]
[1721551273011,0.262699,66890.0,66886.0,0.119606]
[1721551273258,0.1421,66890.0,66886.0,0.119606]
[1721551273611,0.0655,66890.0,66886.0,0.169606]
[1721551273817,0.0655,66890.0,66888.0,0.05]
[1721551273989,0.0645,66890.0,66888.0,0.05]
[1721551274316,0.0655,66890.0,66888.0,0.05]
[1721551274520,0.0655,66890.0,66887.0,0.0773349]
[1721551274651,0.0655,66890.0,66888.0,0.05]
[1721551274652,0.0645,66890.0,66888.0,0.05]
[1721551275051,0.0655,66890.0,66888.0,0.05]
[1721551276336,0.0655,66890.0,66886.0,0.169606]
[1721551276656,0.10928566,66890.0,66886.0,0.169606]
[1721551276830,0.11028566,66890.0,66886.0,0.169606]
[1721551277035,0.11028566,66890.0,66886.0,0.119606]
[1721551277237,0.10928566,66890.0,66886.0,0.119606]
[1721551278018,0.11028566,66890.0,66886.0,0.119606]
[1721551278467,0.11028566,66890.0,66887.0,0.12413597]
[1721551278696,0.04678566,66890.0,66888.0,0.05]
[1721551278899,0.002,66890.0,66889.0,0.05]
[1721551279851,0.001,66890.0,66889.0,0.1253]
[1721551280165,0.00084,66891.0,66889.0,0.14459458]
[1721551280361,0.00084,66891.0,66890.0,0.05]
[1721551281368,0.00284,66891.0,66890.0,0.05]
[1721551281568,0.00484,66891.0,66890.0,0.05]
[1721551281979,0.00284,66891.0,66890.0,0.05]
[1721551283330,0.00484,66891.0,66890.0,0.05]
[1721551284187,0.00484,66891.0,66890.0,0.2293397]
[1721551284529,0.00484,66891.0,66890.0,0.59267043]
[1721551284847,0.00484,66891.0,66890.0,0.4685377]
[1721551285478,0.00484,66891.0,66890.0,0.5926706]
[1721551286579,0.00484,66891.0,66890.0,0.59267037]
[1721551286778,0.00484,66891.0,66890.0,0.4685377]
[1721551287040,0.00484,66891.0,66890.0,0.59267052]
[1721551287242,0.00484,66891.0,66890.0,0.48292982]
[1721551287442,0.00484,66891.0,66890.0,0.24373182]
[1721551288472,0.05407841,66891.0,66890.0,0.24373182]
[1721551289479,0.09888427,66891.0,66890.0,0.24373182]
[1721551289679,0.09889126,66891.0,66890.0,0.119599]
[1721551289878,0.09889126,66891.0,66890.0,0.2437319]
[1721551291259,0.09889126,66891.0,66890.0,0.30955579]
[1721551291406,0.05407841,66891.0,66890.0,0.30955579]
[1721551293981,0.05407841,66891.0,66890.0,0.1241329]
[1721551294377,0.05407841,66891.0,66890.0,0.12413318]
[1721551295547,0.12132731,66891.0,66890.0,0.12413318]
[1721551295999,0.12132731,66891.0,66890.0,0.12673918]
[1721551296232,0.12133688,66891.0,66890.0,0.17673928]
[1721551298831,0.12133688,66891.0,66890.0,0.36251531]
[1721551299030,0.12133688,66891.0,66890.0,0.44561531]
[1721551299431,0.05407841,66891.0,66890.0,0.44561479]
[1721551300192,0.05407841,66891.0,66890.0,0.31251479]
[1721551300413,0.05407841,66891.0,66890.0,0.19291579]
[1721551301482,0.14378714,66891.0,66890.0,0.12673876]
[1721551301760,0.50257914,66891.0,66890.0,0.12673876]
[1721551301961,0.66990633,66891.0,66890.0,0.002606]
[1721551302384,0.55777041,66891.0,66890.0,0.002606]
[1721551303676,0.66997191,66891.0,66890.0,0.002606]
[1721551304631,0.55777041,66891.0,66890.0,0.002606]
[1721551305088,0.66997456,66891.0,66890.0,0.002606]
[1721551305445,0.66997622,66891.0,66890.0,0.002606]
[1721551305650,0.55777041,66891.0,66890.0,0.002606]
[1721551305853,0.43078122,66891.0,66890.0,0.002606]
[1721551306057,0.34908122,66891.0,66890.0,0.002606]
[1721551306283,0.34908049,66891.0,66890.0,0.002606]
[1721551306482,0.28588049,66891.0,66890.0,0.002606]
[1721551308886,0.28587974,66891.0,66890.0,0.002606]
[1721551311828,0.28587974,66891.0,66890.0,0.12674162]
[1721551312040,0.17367541,66891.0,66890.0,0.002606]
[1721551312241,0.28587918,66891.0,66890.0,0.12674161]
[1721551312391,0.28587918,66891.0,66890.0,0.002606]
[1721551312934,0.28587918,66891.0,66890.0,0.1267416]
[1721551313461,0.28587918,66891.0,66890.0,0.002606]
[1721551314923,0.28587918,66891.0,66890.0,0.12674156]
[1721551315325,0.28587876,66891.0,66890.0,0.002606]
[1721551315530,0.28587876,66891.0,66890.0,0.12674158]
[1721551315734,0.28587876,66891.0,66890.0,0.12674157]
[1721551316067,0.16628176,66891.0,66890.0,0.002606]
[1721551316268,0.16628176,66891.0,66890.0,0.12674176]
[1721551316569,0.16628176,66891.0,66890.0,0.12674174]
[1721551316775,0.28587876,66891.0,66890.0,0.12674174]
[1721551316973,0.16628176,66891.0,66890.0,0.12674174]
[1721551318149,0.16628176,66891.0,66890.0,0.002606]
[1721551318381,0.05407841,66891.0,66890.0,0.002606]
[1721551318551,0.16628572,66891.0,66890.0,0.002606]
[1721551319458,0.28588272,66891.0,66890.0,0.002606]
[1721551319857,0.31697541,66891.0,66890.0,0.002606]
[1721551324620,0.24510554,66891.0,66890.0,0.002606]
[1721551329878,0.35730764,66891.0,66890.0,0.002606]
[1721551330191,0.29490764,66891.0,66890.0,0.002606]
[1721551333611,0.18270554,66891.0,66890.0,0.002606]
[1721551333820,0.17531418,66891.0,66890.0,0.1490196]
[1721551334025,0.17531304,66891.0,66890.0,0.98654949]
[1721551334230,0.06310854,66891.0,66890.0,0.98654949]
[1721551334666,0.08118684,66891.0,66890.0,0.98654949]
[1721551335816,0.07215671,66891.0,66890.0,0.98654949]
[1721551336016,0.00484,66891.0,66890.0,0.98654949]
[1721551336384,0.00484,66891.0,66890.0,0.98654157]
[1721551336550,0.00484,66891.0,66890.0,0.8624146]
[1721551336757,0.00484,66891.0,66890.0,0.98654157]
[1721551337378,0.04970805,66891.0,66890.0,0.98654157]
[1721551339795,0.04970252,66891.0,66890.0,0.98654156]
[1721551341516,0.00484,66891.0,66890.0,0.98654156]
[1721551346190,0.00484,66891.0,66890.0,0.98653807]
[1721551352624,0.00484,66891.0,66890.0,0.98653776]
[1721551354606,0.00484,66891.0,66890.0,0.98653773]
[1721551358115,0.00484,66891.0,66890.0,1.38011747]
[1721551359167,0.00484,66891.0,66890.0,1.38011726]
[1721551362969,0.00484,66891.0,66890.0,1.14091926]
[1721551365597,0.00484,66891.0,66890.0,1.14091927]
[1721551366179,0.00484,66891.0,66890.0,0.12672893]
[1721551366180,0.124437,66891.0,66890.0,0.12672893]
[1721551366591,0.16926672,66891.0,66890.0,0.12672893]
[1721551367169,0.00484,66891.0,66890.0,0.17672893]
[1721551368534,0.04966972,66891.0,66890.0,0.17672893]
[1721551368748,0.04966972,66891.0,66890.0,0.17673623]
[1721551368749,0.00484,66891.0,66890.0,0.17673623]
[1721551369743,0.00484,66891.0,66890.0,0.29633523]
[1721551369879,0.04967637,66891.0,66890.0,0.41903155]
[1721551370232,0.04967637,66891.0,66890.0,0.65822955]
[1721551370662,0.00484,66891.0,66890.0,0.65822955]
[1721551371802,0.00484,66891.0,66890.0,0.65822811]
[1721551372922,0.00484,66891.0,66890.0,1.43040585]
[1721551375007,0.00484,66891.0,66890.0,1.43040168]
[1721551375367,0.00484,66891.0,66890.0,1.43040112]
[1721551377892,0.00484,66891.0,66890.0,1.43040177]
[1721551378085,0.00484,66891.0,66890.0,1.43040188]
[1721551380747,0.00484,66891.0,66890.0,1.30627706]
[1721551381029,0.00484,66891.0,66890.0,1.4304017]
[1721551383848,0.00484,66891.0,66890.0,1.43040025]
[1721551386946,0.00484,66891.0,66890.0,1.43040011]
[1721551389813,0.00484,66891.0,66890.0,1.19120211]
[1721551390013,0.00484,66891.0,66890.0,1.06707906]
[1721551390243,0.04971206,66891.0,66890.0,1.19120508]
[1721551393308,0.04971199,66891.0,66890.0,1.19120506]
[1721551396059,0.04971199,66891.0,66890.0,1.14120506]
[1721551396257,0.04971199,66891.0,66890.0,1.19120506]
[1721551396472,0.04971172,66891.0,66890.0,1.19120506]
[1721551396928,0.04971196,66891.0,66890.0,1.19120506]
[1721551398580,0.00484,66891.0,66890.0,1.19120506]
[1721551399667,0.00484,66891.0,66890.0,1.19120483]
[1721551409129,0.00484,66891.0,66890.0,1.06707906]
[1721551409307,0.00484,66891.0,66890.0,1.14120481]
[1721551409508,0.00484,66891.0,66890.0,1.19120481]
[1721551411483,0.04971289,66891.0,66890.0,1.19120481]
[1721551412334,0.00484,66891.0,66890.0,1.06707906]
[1721551412534,0.04971563,66891.0,66890.0,1.19120481]
[1721551414861,0.04972017,66891.0,66890.0,1.19120481]
[1721551418887,0.04972724,66891.0,66890.0,1.19120481]
[1721551419314,0.04972724,66891.0,66890.0,0.41902707]
[1721551419315,0.06624,66891.0,66890.0,0.41902707]
[1721551419549,0.13357087,66891.0,66890.0,0.41902707]
[1721551421781,0.11547995,66891.0,66890.0,0.41902707]
[1721551422026,0.11547995,66891.0,66890.0,0.24490132]
[1721551422232,0.11547995,66891.0,66890.0,0.54316349]
[1721551423502,0.13356479,66891.0,66890.0,0.54316349]
[1721551423928,0.18280871,66891.0,66890.0,0.78236149]
[1721551424135,0.12140871,66891.0,66890.0,0.78236149]
[1721551424343,0.07216479,66891.0,66890.0,0.78236149]
[1721551425374,0.07216208,66891.0,66890.0,0.78236149]
[1721551428440,0.07215825,66891.0,66890.0,0.78236101]
[1721551429090,0.07215825,66891.0,66890.0,0.65822992]
[1721551429375,0.00484,66891.0,66890.0,0.65822992]
[1721551429978,0.07215825,66891.0,66890.0,0.65822992]
[1721551431700,0.07215762,66891.0,66890.0,0.65823012]
[1721551433342,0.00484,66891.0,66890.0,0.65823012]
[1721551434701,0.00484,66891.0,66890.0,0.53409932]
[1721551434930,0.00484,66891.0,66890.0,0.6582285]
[1721551435194,0.07215743,66891.0,66890.0,0.6582285]
[1721551435585,0.00484,66891.0,66890.0,0.6582285]
[1721551436818,0.07215743,66891.0,66890.0,0.6582285]
[1721551437575,0.07215743,66891.0,66890.0,0.2494315]
[1721551437795,0.07215743,66891.0,66890.0,0.2994315]
[1721551438003,0.00484,66891.0,66890.0,0.2994315]
[1721551438220,0.07215759,66891.0,66890.0,0.2994315]
[1721551438781,0.50804959,66891.0,66890.0,0.12673518]
[1721551438994,0.50804959,66891.0,66890.0,0.12674205]
[1721551438995,0.55097726,66891.0,66890.0,0.12674205]
[1721551439425,0.55097726,66891.0,66890.0,0.002606]
[1721551443464,0.64070952,66891.0,66890.0,0.002606]
[1721551444519,0.26341452,66891.0,66890.0,0.17674226]
[1721551444699,0.05408526,66891.0,66890.0,0.17674226]
[1721551444898,0.17368226,66891.0,66890.0,0.17674226]
[1721551446687,0.17368226,66891.0,66890.0,0.17674224]
[1721551447097,0.05408526,66891.0,66890.0,0.41211937]
[1721551447322,0.07213254,66891.0,66890.0,0.77091637]
[1721551447736,0.00484,66891.0,66890.0,0.77091637]
[1721551449339,0.07213254,66891.0,66890.0,0.77091637]
[1721551449535,0.0721311,66891.0,66890.0,0.77091264]
[1721551449741,0.07213112,66891.0,66890.0,0.77091264]
[1721551450534,0.07213112,66891.0,66890.0,1.01011064]
[1721551451474,0.07213112,66891.0,66890.0,1.16449238]
[1721551452841,0.00484,66891.0,66890.0,1.04035986]
[1721551452978,0.07213267,66891.0,66890.0,1.16449238]
[1721551456026,0.00484,66891.0,66890.0,1.04035986]
[1721551456200,0.07213503,66891.0,66890.0,1.16449238]
[1721551458448,0.00484,66891.0,66890.0,1.16449238]
[1721551459276,0.00484,66891.0,66890.0,1.16449179]
[1721551460351,0.00284,66891.0,66890.0,1.16449179]
[1721551460616,0.00084,66891.0,66890.0,1.16449179]
[1721551462049,0.00084,66891.0,66890.0,1.16549179]
[1721551462478,0.00084,66891.0,66890.0,1.04135986]
[1721551462653,0.06814245,66891.0,66890.0,1.16749179]
[1721551465866,0.06814897,66891.0,66890.0,1.16749179]
[1721551468982,0.06815063,66891.0,66890.0,1.16749179]
[1721551469586,0.06815063,66891.0,66890.0,1.40668979]
[1721551472156,0.06815063,66891.0,66890.0,1.34458979]
[1721551472157,0.04571222,66891.0,66890.0,1.34458979]
[1721551472360,0.04571222,66891.0,66890.0,1.4079852]
[1721551472614,0.00084,66891.0,66890.0,1.4079852]
[1721551472817,0.0457125,66891.0,66890.0,1.4079852]
[1721551475001,0.00084,66891.0,66890.0,1.40798463]
[1721551475217,0.00084,66891.0,66890.0,1.4079845]
[1721551478379,0.00084,66891.0,66890.0,1.28385786]
[1721551478587,0.00084,66891.0,66890.0,1.4079799]
[1721551481706,0.00084,66891.0,66890.0,1.40796821]
[1721551481933,0.00084,66891.0,66890.0,1.52305586]
[1721551482131,0.00084,66891.0,66890.0,1.88552954]
[1721551482287,0.00084,66891.0,66890.0,2.00632915]
[1721551482502,0.00084,66891.0,66890.0,2.74552715]
[1721551482702,0.00084,66891.0,66890.0,2.79552715]
[1721551483085,0.00084,66891.0,66890.0,2.29552715]
[1721551483291,0.00084,66891.0,66890.0,2.91452715]
[1721551483488,0.00184,66891.0,66890.0,2.96421347]
[1721551483730,0.00184,66891.0,66890.0,2.98857033]
[1721551483731,0.00284,66891.0,66890.0,2.98857033]
[1721551484034,0.00284,66891.0,66890.0,3.31991334]
[1721551484392,0.00284,66891.0,66890.0,3.05541162]
[1721551484578,0.00284,66891.0,66890.0,2.61625386]
[1721551484779,0.00284,66891.0,66890.0,3.0554081]
[1721551485534,0.00284,66891.0,66890.0,2.97104709]
[1721551486358,0.00284,66891.0,66890.0,2.92646021]
[1721551486968,0.00284,66891.0,66890.0,2.92646014]
[1721551487929,0.00284,66891.0,66890.0,2.97101881]
[1721551488140,0.00284,66891.0,66890.0,3.03305907]
[1721551488336,0.00284,66891.0,66890.0,2.92646014]
[1721551488526,0.00184,66891.0,66890.0,2.92605825]
[1721551488723,0.001546,66891.0,66890.0,3.02605825]
[1721551489038,0.002546,66891.0,66890.0,2.97001881]
[1721551489467,0.002546,66891.0,66890.0,2.91246014]
[1721551489468,0.000546,66891.0,66890.0,2.91246014]
[1721551489784,0.001546,66891.0,66890.0,2.91846014]
[1721551489992,0.002546,66891.0,66890.0,2.92746014]
[1721551490214,0.001546,66891.0,66890.0,2.91846014]
[1721551490626,0.002546,66891.0,66890.0,2.93146014]
[1721551490803,0.000546,66891.0,66890.0,2.91246014]
[1721551491000,0.000546,66891.0,66890.0,2.91244859]
[1721551491204,0.001546,66891.0,66890.0,2.92644859]
[1721551493351,0.002546,66891.0,66890.0,2.93744859]
[1721551493840,0.001546,66891.0,66890.0,2.92644859]
[1721551494377,0.002546,66891.0,66890.0,2.93944859]
[1721551495056,0.002546,66891.0,66890.0,2.88944859]
[1721551497362,0.002546,66891.0,66890.0,2.57925386]
[1721551497597,0.002546,66891.0,66890.0,2.88945799]
[1721551498631,0.002546,66891.0,66890.0,2.93945799]
[1721551499349,0.002546,66891.0,66890.0,2.99930999]
[1721551501601,0.002546,66891.0,66890.0,2.94930999]
[1721551502994,0.002546,66891.0,66890.0,2.94931114]
[1721551505638,0.002546,66891.0,66890.0,2.99931114]
[1721551505967,0.002546,66891.0,66890.0,2.68910586]
[1721551506166,0.002546,66891.0,66890.0,2.94931114]
[1721551506371,0.002546,66891.0,66890.0,3.01135219]
[1721551508098,0.002546,66891.0,66890.0,2.77215419]
[1721551508315,0.002546,66891.0,66890.0,2.71011314]
[1721551509136,0.002546,66891.0,66890.0,2.63604114]
[1721551509339,0.002546,66891.0,66890.0,2.82217341]
[1721551511395,0.002546,66891.0,66890.0,2.97727727]
[1721551512212,0.002546,66891.0,66890.0,2.91523385]
[1721551512383,0.002546,66891.0,66890.0,2.97726102]
[1721551512584,0.002546,66891.0,66890.0,2.66705327]
[1721551512824,0.002546,66891.0,66890.0,2.97726039]
[1721551513211,0.002346,66891.0,66890.0,2.97726039]
[1721551513947,0.002346,66891.0,66890.0,2.92726039]
[1721551514364,0.002346,66891.0,66890.0,2.97726039]
[1721551514600,0.002346,66891.0,66890.0,2.92726039]
[1721551515321,0.002346,66891.0,66890.0,2.92726147]
[1721551516460,0.002346,66891.0,66890.0,2.97726147]
[1721551517503,0.002346,66891.0,66890.0,4.26505402]
[1721551517888,0.002346,66891.0,66890.0,4.01495947]
[1721551518557,0.002346,66891.0,66890.0,4.01495094]
[1721551518725,0.002346,66891.0,66890.0,3.71645094]
[1721551518924,0.000346,66891.0,66890.0,3.68945094]
[1721551519378,0.001346,66891.0,66890.0,3.76096835]
[1721551520214,0.001346,66891.0,66890.0,3.71645094]
[1721551521414,0.001346,66891.0,66890.0,3.78322705]
[1721551521615,0.001346,66891.0,66890.0,4.11455265]
[1721551521859,0.001346,66891.0,66890.0,4.1146455]
[1721551522415,0.001346,66891.0,66890.0,4.04777467]
[1721551523426,0.001346,66891.0,66890.0,4.13693577]
[1721551524470,0.001346,66891.0,66890.0,4.15922605]
[1721551524852,0.001346,66891.0,66890.0,3.65440739]
[1721551525057,0.001346,66891.0,66890.0,4.15933509]
[1721551525528,0.001346,66891.0,66890.0,4.04777378]
[1721551527411,0.001246,66891.0,66890.0,4.04777378]
[1721551527995,0.001246,66891.0,66890.0,3.40624925]
[1721551528226,0.001246,66891.0,66890.0,4.04777374]
[1721551531293,0.001246,66891.0,66890.0,3.67553656]
[1721551531497,0.001246,66891.0,66890.0,3.94777374]
[1721551534416,0.001246,66891.0,66890.0,4.04777374]
[1721551534620,0.001246,66891.0,66890.0,4.0477737]
[1721551535212,0.001246,66891.0,66890.0,3.40624925]
[1721551535689,0.001246,66891.0,66890.0,3.35624925]
[1721551536048,0.001246,66891.0,66890.0,3.68757607]
[1721551536509,0.001246,66891.0,66890.0,3.73757607]
[1721551536827,0.001246,66891.0,66890.0,3.67553654]
[1721551537668,0.001246,66891.0,66890.0,3.34420972]
[1721551539993,0.001246,66891.0,66890.0,3.40624932]
[1721551540983,0.001246,66891.0,66890.0,3.34420972]
[1721551541793,0.001246,66891.0,66890.0,3.24420972]
[1721551542000,0.001246,66891.0,66890.0,3.34420972]
[1721551542154,0.001246,66891.0,66890.0,3.24420972]
[1721551542354,0.001246,66891.0,66890.0,3.3442028]
[1721551543766,1e-06,66891.0,66890.0,3.7409008]
[1721551544379,1e-06,66891.0,66890.0,5.2409008]
[1721551544775,1e-06,66891.0,66890.0,5.0017028]
[1721551545392,1e-06,66891.0,66890.0,3.5017028]
[1721551545594,1e-06,66891.0,66890.0,3.7409008]
[1721551545817,1e-06,66891.0,66890.0,5.0017028]
[1721551546121,1e-06,66891.0,66890.0,3.5017028]
[1721551546517,1e-06,66891.0,66890.0,3.4877028]
[1721551546742,0.0613,66904.0,66903.0,1.176184]
[1721551546862,0.0613,66904.0,66903.0,1.9998317]
[1721551547058,0.0613,66904.0,66903.0,2.0998317]
[1721551548381,0.0613,66904.0,66903.0,2.2598317]
[1721551549001,0.0613,66904.0,66903.0,2.2668317]
[1721551549203,0.0613,66904.0,66903.0,2.2748317]
[1721551552392,0.0613,66904.0,66903.0,2.2248317]
[1721551552830,0.00837,66906.0,66903.0,0.9686477]
[1721551553052,0.00837,66906.0,66905.0,0.15438174]
[1721551553221,0.00837,66906.0,66905.0,0.17738174]
[1721551553423,0.00837,66906.0,66905.0,0.90738174]
[1721551554373,0.00837,66906.0,66905.0,1.98353374]
[1721551554574,0.00837,66906.0,66905.0,2.04338174]
[1721551554776,0.00837,66906.0,66905.0,2.1096477]
[1721551555762,0.00837,66906.0,66905.0,2.1596477]